{"text_format":"3","workbook":"xlsx","n_sheets":2,"sheets":["Старт","Рентабилност на клиентите"],"not_rendered":{"charts":1},"read":"whole","date_system":"1900"}

{"sheet":"Старт","index":0,"n_rows":7,"n_cols":2,"rows_kept":7}
[null,"ЗА ТОЗИ ШАБЛОН"]
[null,"Използвайте този Анализ на рентабилността на клиентите за проследяване на Дейност на клиентите, Разходи за продажбите и Други разходи."]
[null,"Попълнете информацията като име на фирма и дата и подробните данни в таблиците."]
[null,"Стойностите в клетките, съдържащи формули, и таблицата \"Обобщени метрики\" се изчисляват автоматично, а диаграмата се актуализира."]
[null,"Забележка:  "]
[null,"Допълнителни инструкции са предоставени в колона A в работния лист РЕНТАБИЛНОСТ НА КЛИЕНТИТЕ. Този текст е скрит нарочно. За да премахнете текста, изберете колона А, след което изберете DELETE. За да покажете текст, изберете колона A, след което променете цвета на шрифта."]
[null,"За да научите повече за таблиците в този работен лист, натиснете SHIFT и след това F10 в таблица, изберете опцията ТАБЛИЦА, след което изберете АЛТЕРНАТИВЕН ТЕКСТ."]

{"sheet":"Рентабилност на клиентите","index":1,"n_rows":37,"n_cols":6,"rows_kept":37,"merged":[[36,1,36,5]]}
["Създайте Анализ на рентабилността на клиентите в този работен лист. Полезни инструкции как да използвате този работен лист, можете да намерите в клетките в тази колона. Натиснете стрелката надолу, за да започнете."]
["Въведете Име на фирма в клетката отдясно.","Име на фирма"]
["Заглавието на този работен лист е в клетката отдясно.","Анализ на рентабилността на клиентите"]
["Въведете дата в клетката отдясно.","Дата"]
["Съветът е в клетката отдясно.","Сивите клетки ще бъдат изчислени автоматично. Не трябва да въвеждате нищо в тях."]
["Въведете подробности в таблицата \"Дейност на клиентите\", като започнете от клетката вдясно. Следващата инструкция е в клетка A12.","Дейност на клиентите:","Име на сегмент 1","Име на сегмент 2","Име на сегмент 3","Общо"]
[null,"Брой на активните клиенти – в началото на периода",5,8,8,{"$f":"SUM(C7:E7)","v":21}]
[null,"Брой на добавените клиенти",2,4,4,{"$f":"SUM(C8:E8)","v":10}]
[null,"Брой на загубените/прекратените клиенти",{"v":-1,"d":"-1 "},{"v":-2,"d":"-2 "},{"v":-2,"d":"-2 "},{"$f":"SUM(C9:E9)","v":{"v":-5,"d":"-5 "}}]
[null,"Брой на активните клиенти – в края на периода",{"$f":"SUBTOTAL(109,ДейностНаКлиентите[Име на сегмент 1])","v":6},{"$f":"SUBTOTAL(109,ДейностНаКлиентите[Име на сегмент 2])","v":10},{"$f":"SUBTOTAL(109,ДейностНаКлиентите[Име на сегмент 3])","v":10},{"$f":"SUBTOTAL(109,ДейностНаКлиентите[Общо])","v":26}]
[]
["Въведете подробности в таблицата \"Анализ на рентабилността\", като започнете от клетката вдясно. Следващата инструкция е в клетка A16.","Анализ на рентабилността:","Име на сегмент 1","Име на сегмент 2","Име на сегмент 3","Общо"]
[null,"Печалба на сегмент",{"v":1500000,"d":"1,500,000.00 лв."},{"v":1800000,"d":"1,800,000.00 лв."},{"v":2500000,"d":"2,500,000.00 лв."},{"$f":"SUM(АнализНаРентабилността[[#This Row],[Име на сегмент 1]:[Име на сегмент 3]])","v":{"v":5800000,"d":"5,800,000.00 лв."}}]
[null,"Тежест",{"$f":"+C13/$F$13","v":{"v":0.25862068965517243,"d":"26%"}},{"$f":"+D13/$F$13","v":{"v":0.3103448275862069,"d":"31%"}},{"$f":"+E13/$F$13","v":{"v":0.43103448275862066,"d":"43%"}},{"$f":"SUM(АнализНаРентабилността[[#This Row],[Име на сегмент 1]:[Име на сегмент 3]])","v":{"v":1,"d":"100%"}}]
[]
["Въведете подробности в таблицата \"Разходи за продажбите\", като започнете от клетката вдясно. Следващата инструкция е в клетка A23.","Разходи за продажбите:","Име на сегмент 1","Име на сегмент 2","Име на сегмент 3","Общо"]
[null,"Текущи разходи за обслужване и поддръжка",{"v":1000000,"d":"1,000,000.00 лв."},{"v":1400000,"d":"1,400,000.00 лв."},{"v":1400000,"d":"1,400,000.00 лв."},{"$f":"SUM(C17:E17)","v":{"v":3800000,"d":"3,800,000.00 лв."}}]
[null,"Други директни разходи за клиента",{"v":200000,"d":"200,000.00 лв."},{"v":100000,"d":"100,000.00 лв."},{"v":100000,"d":"100,000.00 лв."},{"$f":"SUM(C18:E18)","v":{"v":400000,"d":"400,000.00 лв."}}]
[null,"Общо разходи за продажбите",{"$f":"SUM(C17:C18)","v":{"v":1200000,"d":"1,200,000.00 лв."}},{"$f":"SUM(D17:D18)","v":{"v":1500000,"d":"1,500,000.00 лв."}},{"$f":"SUM(E17:E18)","v":{"v":1500000,"d":"1,500,000.00 лв."}},{"$f":"SUM(F17:F18)","v":{"v":4200000,"d":"4,200,000.00 лв."}}]
[null,"Брутна печалба",{"$f":"+C13-C19","v":{"v":300000,"d":"300,000.00 лв."}},{"$f":"+D13-D19","v":{"v":300000,"d":"300,000.00 лв."}},{"$f":"+E13-E19","v":{"v":1000000,"d":"1,000,000.00 лв."}},{"$f":"+F13-F19","v":{"v":1600000,"d":"1,600,000.00 лв."}}]
[null,"Тежест",{"$f":"MAX(0, MIN(1,C20/$F$20))","v":{"v":0.1875,"d":"19%"}},{"$f":"MAX(0, MIN(1,D20/$F$20))","v":{"v":0.1875,"d":"19%"}},{"$f":"MAX(0, MIN(1,E20/$F$20))","v":{"v":0.625,"d":"63%"}},{"$f":"SUM(C21:E21)","v":{"v":1,"d":"100%"}}]
[]
["Въведете подробности в таблицата \"Други разходи\", като започнете от клетката вдясно. Следващата инструкция е в клетка A31.","Други разходи:","Име на сегмент 1","Име на сегмент 2","Име на сегмент 3","Общо"]
[null,"Привличане на клиенти",{"v":105000,"d":"105,000.00 лв."},{"v":120000,"d":"120,000.00 лв."},{"v":235000,"d":"235,000.00 лв."},{"$f":"SUM(ДругиРазходи[[#This Row],[Име на сегмент 1]:[Име на сегмент 3]])","v":{"v":460000,"d":"460,000.00 лв."}}]
[null,"Маркетинг за клиентите",{"v":150000,"d":"150,000.00 лв."},{"v":125000,"d":"125,000.00 лв."},{"v":275000,"d":"275,000.00 лв."},{"$f":"SUM(C25:E25)","v":{"v":550000,"d":"550,000.00 лв."}}]
[null,"Прекратяване на клиенти",{"v":80000,"d":"80,000.00 лв."},{"v":190000,"d":"190,000.00 лв."},{"v":140000,"d":"140,000.00 лв."},{"$f":"SUM(C26:E26)","v":{"v":410000,"d":"410,000.00 лв."}}]
[null,"Общо други разходи за клиента",{"$f":"SUM(C24:C26)","v":{"v":335000,"d":"335,000.00 лв."}},{"$f":"SUM(D24:D26)","v":{"v":435000,"d":"435,000.00 лв."}},{"$f":"SUM(E24:E26)","v":{"v":650000,"d":"650,000.00 лв."}},{"$f":"SUM(F24:F26)","v":{"v":1420000,"d":"1,420,000.00 лв."}}]
[null,"Печалба от клиентите по сегмент",{"$f":"+C20-C27","v":{"v":-35000,"d":"-35,000.00 лв."}},{"$f":"+D20-D27","v":{"v":-135000,"d":"-135,000.00 лв."}},{"$f":"+E20-E27","v":{"v":350000,"d":"350,000.00 лв."}},{"$f":"SUM(C28:E28)","v":{"v":180000,"d":"180,000.00 лв."}}]
[null,"Тежест",{"$f":"MAX(0,MIN(1, C28/$F$28))","v":{"v":0,"d":"0%"}},{"$f":"MAX(0,MIN(1, D28/$F$28))","v":{"v":0,"d":"0%"}},{"$f":"MAX(0,MIN(1, E28/$F$28))","v":{"v":1,"d":"100%"}},{"$f":"SUM(C29:E29)","v":{"v":1,"d":"100%"}}]
[]
["Таблица \"Обобщени метрики\", започваща от клетката вдясно, се актуализира автоматично. Следващата инструкция е в клетка A37.","Обобщени метрики:","Име на сегмент 1","Име на сегмент 2","Име на сегмент 3","Тенденция"]
[null,"Средно разходи за придобит клиент",{"$f":"+C24/C8","v":{"v":52500,"d":"52,500.00 лв."}},{"$f":"+D24/D8","v":{"v":30000,"d":"30,000.00 лв."}},{"$f":"+E24/E8","v":{"v":58750,"d":"58,750.00 лв."}}]
[null,"Средно разходи за прекратен клиент",{"$f":"-C26/C9","v":{"v":80000,"d":"80,000.00 лв."}},{"$f":"-D26/D9","v":{"v":95000,"d":"95,000.00 лв."}},{"$f":"-E26/E9","v":{"v":70000,"d":"70,000.00 лв."}}]
[null,"Средно разходи за маркетинг за активен клиент",{"$f":"+C26/ДейностНаКлиентите[[#Totals],[Име на сегмент 1]]","v":{"v":13333.333333333334,"d":"13,333.33 лв."}},{"$f":"+D25/ДейностНаКлиентите[[#Totals],[Име на сегмент 2]]","v":{"v":12500,"d":"12,500.00 лв."}},{"$f":"+E25/ДейностНаКлиентите[[#Totals],[Име на сегмент 3]]","v":{"v":27500,"d":"27,500.00 лв."}}]
[null,"Средната печалба (загуба) за клиент",{"$f":"+C29/ДейностНаКлиентите[[#Totals],[Име на сегмент 1]]","v":{"v":0,"d":"0.00 лв."}},{"$f":"+D28/ДейностНаКлиентите[[#Totals],[Име на сегмент 2]]","v":{"v":-13500,"d":"-13,500.00 лв."}},{"$f":"+E28/ДейностНаКлиентите[[#Totals],[Име на сегмент 3]]","v":{"v":35000,"d":"35,000.00 лв."}}]
[]
["Колонната диаграма с клъстери, показваща \"Обобщени метрики за клиентски сегмент\", е в клетката вдясно.","Колонната диаграма с клъстери, показваща \"Обобщени метрики за клиентски сегмент\", е в тази клетка."]